[Event "*** Titled Tuesday Blitz"]
[Site "Chess.com"]
[Date "2019.06.04"]
[Round "3"]
[White "DamianoLew95"]
[Black "MrVenky"]
[Result "0-1"]
[WhiteElo "2492"]
[BlackElo "2789"]
[TimeControl "180+2"]
[EndTime "13:38:07 PDT"]
[Termination "MrVenky won on time"]

1. e4 {[%clk 0:03:00.5]} 1... e5 {[%clk 0:02:58.6]} 2. Nf3 {[%clk 0:03:01.5]}
2... Nc6 {[%clk 0:02:59.6]} 3. Bb5 {[%clk 0:03:00]} 3... a6 {[%clk 0:02:58.2]}
4. Bxc6 {[%clk 0:03:00.6]} 4... dxc6 {[%clk 0:02:58.2]} 5. O-O {[%clk
0:03:00.5]} 5... f6 {[%clk 0:02:58.6]} 6. d4 {[%clk 0:03:01.1]} 6... Bg4 {[%clk
0:02:57]} 7. dxe5 {[%clk 0:02:58]} 7... Qxd1 {[%clk 0:02:57]} 8. Rxd1 {[%clk
0:02:58.3]} 8... fxe5 {[%clk 0:02:58.1]} 9. Rd3 {[%clk 0:02:59.3]} 9... Bxf3
{[%clk 0:02:54.5]} 10. Rxf3 {[%clk 0:02:58.7]} 10... Nf6 {[%clk 0:02:55.3]} 11.
Nc3 {[%clk 0:02:46.6]} 11... Rd8 {[%clk 0:02:55.2]} 12. Bg5 {[%clk 0:02:42.9]}
12... Be7 {[%clk 0:02:56]} 13. Rd1 {[%clk 0:02:35.9]} 13... Rxd1+ {[%clk
0:02:55.9]} 14. Nxd1 {[%clk 0:02:30.5]} 14... Nxe4 {[%clk 0:02:56.9]} 15. Bxe7
{[%clk 0:02:30.7]} 15... Kxe7 {[%clk 0:02:58]} 16. g3 {[%clk 0:02:04.4]} 16...
Rd8 {[%clk 0:02:58.5]} 17. Ne3 {[%clk 0:02:05.2]} 17... g6 {[%clk 0:02:57]} 18.
Nc4 {[%clk 0:02:03.4]} 18... Nd2 {[%clk 0:02:54]} 19. Rc3 {[%clk 0:01:52.3]}
19... Nxc4 {[%clk 0:02:49.4]} 20. Rxc4 {[%clk 0:01:53.3]} 20... Ke6 {[%clk
0:02:49.1]} 21. Kf1 {[%clk 0:01:52.4]} 21... Rd1+ {[%clk 0:02:48.6]} 22. Ke2
{[%clk 0:01:52.6]} 22... Rb1 {[%clk 0:02:40.5]} 23. b3 {[%clk 0:01:49.9]} 23...
Kd5 {[%clk 0:02:36.4]} 24. Rc3 {[%clk 0:01:45.2]} 24... e4 {[%clk 0:02:34.1]}
25. f3 {[%clk 0:01:27]} 25... Rh1 {[%clk 0:02:29.3]} 26. fxe4+ {[%clk
0:01:17.5]} 26... Kxe4 {[%clk 0:02:30]} 27. Rc4+ {[%clk 0:01:18.2]} 27... Kf5
{[%clk 0:02:30.6]} 28. h4 {[%clk 0:01:16.4]} 28... h5 {[%clk 0:02:21.9]} 29.
Rf4+ {[%clk 0:01:15.1]} 29... Ke6 {[%clk 0:02:22.4]} 30. Re4+ {[%clk 0:01:16]}
30... Kd6 {[%clk 0:02:20.9]} 31. Rd4+ {[%clk 0:01:17.1]} 31... Kc5 {[%clk
0:02:19.2]} 32. Rf4 {[%clk 0:01:12.7]} 32... Rh2+ {[%clk 0:02:17.8]} 33. Kd3
{[%clk 0:01:11.8]} 33... Rg2 {[%clk 0:02:18.7]} 34. Rf3 {[%clk 0:01:11.2]} 34...
b5 {[%clk 0:02:16]} 35. a3 {[%clk 0:01:11.4]} 35... a5 {[%clk 0:02:16.5]} 36.
Kc3 {[%clk 0:01:12.6]} 36... Kd5 {[%clk 0:02:11.6]} 37. Kd3 {[%clk 0:01:12.9]}
37... c5 {[%clk 0:02:11.1]} 38. Re3 {[%clk 0:01:09.9]} 38... b4 {[%clk 0:02:07]}
39. axb4 {[%clk 0:01:10.2]} 39... cxb4 {[%clk 0:02:07]} 40. Rf3 {[%clk
0:01:08.3]} 40... c5 {[%clk 0:02:07.1]} 41. Re3 {[%clk 0:01:07.2]} 41... Rg1
{[%clk 0:02:05]} 42. Rf3 {[%clk 0:00:59.3]} 42... c4+ {[%clk 0:01:58.5]} 43.
bxc4+ {[%clk 0:00:59.4]} 43... Kc5 {[%clk 0:01:59.6]} 44. Re3 {[%clk 0:00:56.7]}
44... a4 {[%clk 0:02:00.5]} 45. Re5+ {[%clk 0:00:55.7]} 45... Kd6 {[%clk
0:02:01]} 46. Rg5 {[%clk 0:00:51.3]} 46... a3 {[%clk 0:02:01.1]} 47. Rxg6+
{[%clk 0:00:52]} 47... Kc5 {[%clk 0:02:01.1]} 48. Rg5+ {[%clk 0:00:47.1]} 48...
Kb6 {[%clk 0:02:00.1]} 49. Rb5+ {[%clk 0:00:47.7]} 49... Kc6 {[%clk 0:01:55.6]}
50. Ra5 {[%clk 0:00:45.9]} 50... Rxg3+ {[%clk 0:01:56]} 51. Kd2 {[%clk
0:00:44.6]} 51... Rg4 {[%clk 0:01:55.9]} 52. c3 {[%clk 0:00:44]} 52... Rg2+
{[%clk 0:01:52]} 53. Kc1 {[%clk 0:00:44.8]} 53... bxc3 {[%clk 0:01:44.9]} 54.
Rxa3 {[%clk 0:00:44.8]} 54... c2 {[%clk 0:01:43.9]} 55. Ra5 {[%clk 0:00:37.5]}
55... Rg4 {[%clk 0:01:35.7]} 56. Rxh5 {[%clk 0:00:34.5]} 56... Rxc4 {[%clk
0:01:36.3]} 57. Rh8 {[%clk 0:00:34.8]} 57... Kb5 {[%clk 0:01:35.8]} 58. h5
{[%clk 0:00:33.2]} 58... Kb4 {[%clk 0:01:35.8]} 59. h6 {[%clk 0:00:18]} 59...
Kc3 {[%clk 0:01:26.6]} 60. Rf8 {[%clk 0:00:03.4]} 60... Rh4 {[%clk 0:01:07.9]}
61. Rc8+ {[%clk 0:00:03.6]} 61... Kb3 {[%clk 0:01:08]} 0-1

[Event "*** Titled Tuesday Blitz"]
[Site "Chess.com"]
[Date "2019.06.04"]
[Round "3"]
[White "tteshan"]
[Black "Denis_Palkovich"]
[Result "0-1"]
[WhiteElo "2254"]
[BlackElo "2242"]
[TimeControl "180+2"]
[EndTime "13:38:09 PDT"]
[Termination "Denis_Palkovich won by resignation"]

1. e4 {[%clk 0:03:01.9]} 1... c6 {[%clk 0:03:00.5]} 2. d4 {[%clk 0:03:02.4]}
2... d5 {[%clk 0:02:59.5]} 3. Nc3 {[%clk 0:03:03.8]} 3... dxe4 {[%clk
0:03:00.2]} 4. Nxe4 {[%clk 0:03:05.7]} 4... Nf6 {[%clk 0:03:01.7]} 5. Nxf6+
{[%clk 0:03:06.1]} 5... exf6 {[%clk 0:03:02.9]} 6. Nf3 {[%clk 0:03:07.5]} 6...
Bf5 {[%clk 0:03:02.2]} 7. Bd3 {[%clk 0:03:06.8]} 7... Bxd3 {[%clk 0:03:03]} 8.
Qxd3 {[%clk 0:03:08.7]} 8... Bd6 {[%clk 0:03:04.4]} 9. O-O {[%clk 0:03:09.7]}
9... O-O {[%clk 0:03:04.9]} 10. Re1 {[%clk 0:03:09.3]} 10... Nd7 {[%clk
0:03:06]} 11. Be3 {[%clk 0:03:03.5]} 11... Qc7 {[%clk 0:03:07.1]} 12. Rad1
{[%clk 0:03:03.5]} 12... Rfe8 {[%clk 0:03:07.1]} 13. h3 {[%clk 0:03:04.1]} 13...
Rad8 {[%clk 0:03:07.2]} 14. c3 {[%clk 0:03:04.4]} 14... Nf8 {[%clk 0:02:59.4]}
15. Nd2 {[%clk 0:03:04]} 15... Qd7 {[%clk 0:02:46.7]} 16. Ne4 {[%clk 0:02:47]}
16... Bc7 {[%clk 0:02:22.9]} 17. Nc5 {[%clk 0:02:39.2]} 17... Qc8 {[%clk
0:02:23.7]} 18. Qc2 {[%clk 0:02:33.9]} 18... b6 {[%clk 0:02:18.6]} 19. Nd3
{[%clk 0:02:34.8]} 19... Qa6 {[%clk 0:02:00.1]} 20. b3 {[%clk 0:02:31.7]} 20...
Ng6 {[%clk 0:01:56.3]} 21. Nb4 {[%clk 0:02:29]} 21... Qb7 {[%clk 0:01:52.1]} 22.
c4 {[%clk 0:02:28.1]} 22... a5 {[%clk 0:01:33.2]} 23. Nd3 {[%clk 0:02:28]} 23...
Qc8 {[%clk 0:01:13.5]} 24. Re2 {[%clk 0:01:41.1]} 24... Qf5 {[%clk 0:01:11.3]}
25. Rde1 {[%clk 0:01:39.1]} 25... h5 {[%clk 0:01:07.6]} 26. Qd2 {[%clk 0:01:29]}
26... Re4 {[%clk 0:00:46.3]} 27. a3 {[%clk 0:01:05.6]} 27... Nh4 {[%clk
0:00:35.5]} 28. f3 {[%clk 0:00:43.8]} 28... Rexd4 {[%clk 0:00:22.4]} 29. Bxd4
{[%clk 0:00:40.9]} 29... Rxd4 {[%clk 0:00:24.3]} 30. Re8+ {[%clk 0:00:39.9]}
30... Kh7 {[%clk 0:00:24.8]} 31. Qf2 {[%clk 0:00:22.3]} 31... Qxd3 {[%clk
0:00:12.4]} 32. Rc8 {[%clk 0:00:22.5]} 32... Be5 {[%clk 0:00:10.8]} 33. Rxc6
{[%clk 0:00:22.2]} 33... Nf5 {[%clk 0:00:09.4]} 34. Rxb6 {[%clk 0:00:21.5]}
34... Bg3 {[%clk 0:00:10]} 35. Qe2 {[%clk 0:00:21.6]} 35... Bxe1 {[%clk
0:00:10]} 36. Qxe1 {[%clk 0:00:22.2]} 36... Qd1 {[%clk 0:00:10.4]} 37. Qxd1
{[%clk 0:00:22.8]} 37... Rxd1+ {[%clk 0:00:12.3]} 38. Kf2 {[%clk 0:00:24.4]}
38... Rd3 {[%clk 0:00:13.1]} 39. Ke2 {[%clk 0:00:24.2]} 39... Rc3 {[%clk
0:00:14]} 40. Kd2 {[%clk 0:00:23.8]} 40... Re3 {[%clk 0:00:10.2]} 41. g4 {[%clk
0:00:24.6]} 41... Rxf3 {[%clk 0:00:08.8]} 42. gxf5 {[%clk 0:00:25.7]} 42... Rxh3
{[%clk 0:00:09.6]} 43. c5 {[%clk 0:00:25.8]} 43... h4 {[%clk 0:00:08]} 44. c6
{[%clk 0:00:25.4]} 44... Rh2+ {[%clk 0:00:09.9]} 45. Ke3 {[%clk 0:00:25.4]}
45... Rc2 {[%clk 0:00:10.4]} 46. Kf3 {[%clk 0:00:15.9]} 46... Kh6 {[%clk
0:00:11.1]} 47. b4 {[%clk 0:00:16.6]} 47... axb4 {[%clk 0:00:11]} 48. axb4
{[%clk 0:00:18.5]} 48... Kg5 {[%clk 0:00:12.2]} 49. b5 {[%clk 0:00:19.4]} 49...
Kxf5 {[%clk 0:00:14.1]} 50. Ra6 {[%clk 0:00:20.4]} 50... g5 {[%clk 0:00:15.9]}
51. Ra4 {[%clk 0:00:20.5]} 51... Rc3+ {[%clk 0:00:16.7]} 52. Kg2 {[%clk
0:00:21.3]} 52... g4 {[%clk 0:00:17.5]} 53. Rb4 {[%clk 0:00:21.3]} 53... Rc2+
{[%clk 0:00:17.3]} 54. Kf1 {[%clk 0:00:21.7]} 54... h3 {[%clk 0:00:16.4]} 55. b6
{[%clk 0:00:22.7]} 55... h2 {[%clk 0:00:17.3]} 56. Rb5+ {[%clk 0:00:23.6]} 56...
Kf4 {[%clk 0:00:17.6]} 57. Rb4+ {[%clk 0:00:24.4]} 57... Kg5 {[%clk 0:00:18.2]}
58. Rb5+ {[%clk 0:00:25.5]} 58... Kh4 {[%clk 0:00:19.4]} 0-1

[Event "*** Titled Tuesday Blitz"]
[Site "Chess.com"]
[Date "2019.06.04"]
[Round "3"]
[White "GelmanAlexander"]
[Black "maciek_92"]
[Result "0-1"]
[WhiteElo "2594"]
[BlackElo "2680"]
[TimeControl "180+2"]
[EndTime "13:38:10 PDT"]
[Termination "maciek_92 won by resignation"]

1. d4 {[%clk 0:03:01.9]} 1... Nf6 {[%clk 0:03:00.4]} 2. Nc3 {[%clk 0:03:01.8]}
2... d5 {[%clk 0:03:00.9]} 3. Bf4 {[%clk 0:03:03]} 3... e6 {[%clk 0:03:00.5]} 4.
Nb5 {[%clk 0:03:03]} 4... Bd6 {[%clk 0:02:57.1]} 5. Nxd6+ {[%clk 0:03:03.6]}
5... cxd6 {[%clk 0:02:59]} 6. e3 {[%clk 0:03:04.9]} 6... Nc6 {[%clk 0:03:00.5]}
7. Nf3 {[%clk 0:03:06]} 7... O-O {[%clk 0:03:01.3]} 8. Be2 {[%clk 0:03:07.6]}
8... Ne7 {[%clk 0:03:00.6]} 9. h3 {[%clk 0:03:04.8]} 9... Ng6 {[%clk 0:03:01.6]}
10. Bh2 {[%clk 0:03:04.6]} 10... a5 {[%clk 0:03:01.8]} 11. O-O {[%clk
0:02:54.9]} 11... b6 {[%clk 0:03:02.8]} 12. a4 {[%clk 0:02:31]} 12... Ba6 {[%clk
0:03:01.5]} 13. Bxa6 {[%clk 0:02:29.9]} 13... Rxa6 {[%clk 0:03:03.4]} 14. Qd3
{[%clk 0:02:28.2]} 14... Ra7 {[%clk 0:03:04.5]} 15. Nd2 {[%clk 0:02:24.9]} 15...
Rc7 {[%clk 0:02:47.9]} 16. c3 {[%clk 0:02:24]} 16... Qd7 {[%clk 0:02:46.2]} 17.
Qb5 {[%clk 0:02:21.7]} 17... Qxb5 {[%clk 0:02:38.2]} 18. axb5 {[%clk 0:02:22.5]}
18... Rd8 {[%clk 0:02:39.5]} 19. Rfc1 {[%clk 0:02:21.2]} 19... Ne8 {[%clk
0:02:24.7]} 20. Kf1 {[%clk 0:02:19.8]} 20... Rdc8 {[%clk 0:02:22.2]} 21. Ke2
{[%clk 0:02:19.8]} 21... Kf8 {[%clk 0:02:23.7]} 22. Kd3 {[%clk 0:02:19.6]} 22...
Ke7 {[%clk 0:02:24.4]} 23. b3 {[%clk 0:02:20.8]} 23... Nh4 {[%clk 0:02:11.2]}
24. g4 {[%clk 0:02:10.6]} 24... f5 {[%clk 0:01:53.9]} 25. Bg3 {[%clk 0:02:04.5]}
25... Ng6 {[%clk 0:01:54.8]} 26. gxf5 {[%clk 0:01:44]} 26... exf5 {[%clk
0:01:56.7]} 27. c4 {[%clk 0:01:45.6]} 27... Nf6 {[%clk 0:01:54]} 28. Rc2 {[%clk
0:01:37.1]} 28... Ne4 {[%clk 0:01:52.9]} 29. Rac1 {[%clk 0:01:26.6]} 29... Kd7
{[%clk 0:01:39.8]} 30. cxd5 {[%clk 0:01:03.7]} 30... Rxc2 {[%clk 0:01:40.1]} 31.
Rxc2 {[%clk 0:01:05]} 31... Rxc2 {[%clk 0:01:41.6]} 32. Kxc2 {[%clk 0:01:06.4]}
32... Nxd2 {[%clk 0:01:43.2]} 33. Kxd2 {[%clk 0:01:07.5]} 33... Ne7 {[%clk
0:01:44.7]} 34. Kd3 {[%clk 0:00:59.8]} 34... Nxd5 {[%clk 0:01:45.3]} 35. f3
{[%clk 0:00:57.2]} 35... Nc7 {[%clk 0:01:42.5]} 36. e4 {[%clk 0:00:52]} 36...
fxe4+ {[%clk 0:01:44.4]} 37. fxe4 {[%clk 0:00:52.2]} 37... Nxb5 {[%clk
0:01:45.6]} 38. Kc4 {[%clk 0:00:51.7]} 38... Nc7 {[%clk 0:01:30.6]} 39. d5
{[%clk 0:00:51.2]} 39... b5+ {[%clk 0:01:31.4]} 40. Kd4 {[%clk 0:00:51.6]} 40...
Na6 {[%clk 0:01:19.5]} 41. Be1 {[%clk 0:00:52.3]} 41... a4 {[%clk 0:01:14.1]}
42. bxa4 {[%clk 0:00:45.7]} 42... bxa4 {[%clk 0:01:16]} 43. Kc4 {[%clk
0:00:41.5]} 43... a3 {[%clk 0:01:16]} 44. Bc3 {[%clk 0:00:42.4]} 44... g6 {[%clk
0:01:12.2]} 45. Bd4 {[%clk 0:00:40.5]} 45... Nc5 {[%clk 0:00:34.5]} 46. e5
{[%clk 0:00:26.4]} 46... dxe5 {[%clk 0:00:34.9]} 47. Bxe5 {[%clk 0:00:24.5]}
47... Ne4 {[%clk 0:00:34.1]} 48. Kb3 {[%clk 0:00:22.6]} 48... Ng5 {[%clk
0:00:33.1]} 49. h4 {[%clk 0:00:21.5]} 49... Nf3 {[%clk 0:00:34.5]} 50. Bg3
{[%clk 0:00:22.6]} 50... Nd4+ {[%clk 0:00:34.9]} 51. Kxa3 {[%clk 0:00:23.7]}
51... Nf5 {[%clk 0:00:36.8]} 52. Bf2 {[%clk 0:00:24.4]} 52... Kd6 {[%clk
0:00:37.8]} 53. Kb3 {[%clk 0:00:25.5]} 53... Kxd5 {[%clk 0:00:39.4]} 54. Kc3
{[%clk 0:00:27.2]} 54... Ke4 {[%clk 0:00:40.8]} 55. Kd2 {[%clk 0:00:28.7]} 55...
Kf3 {[%clk 0:00:41.5]} 56. Ke1 {[%clk 0:00:30.2]} 56... Kg4 {[%clk 0:00:41.8]}
57. Kf1 {[%clk 0:00:31.6]} 57... Nxh4 {[%clk 0:00:42.6]} 58. Kg1 {[%clk
0:00:32.1]} 58... Nf3+ {[%clk 0:00:43.3]} 59. Kg2 {[%clk 0:00:33.4]} 59... h5
{[%clk 0:00:43.5]} 60. Be3 {[%clk 0:00:34.2]} 60... h4 {[%clk 0:00:44.5]} 61.
Kh1 {[%clk 0:00:35.2]} 61... h3 {[%clk 0:00:45]} 62. Bc5 {[%clk 0:00:35.7]}
62... g5 {[%clk 0:00:43.3]} 63. Bd6 {[%clk 0:00:35.6]} 63... Ne1 {[%clk
0:00:37.6]} 64. Bc7 {[%clk 0:00:36.2]} 64... Nd3 {[%clk 0:00:39.5]} 65. Bb8
{[%clk 0:00:37.1]} 65... Nf4 {[%clk 0:00:41.4]} 66. Bc7 {[%clk 0:00:37.6]} 66...
Kf3 {[%clk 0:00:42.2]} 67. Ba5 {[%clk 0:00:38.6]} 67... g4 {[%clk 0:00:43]} 68.
Be1 {[%clk 0:00:37.9]} 68... g3 {[%clk 0:00:43.7]} 69. Kg1 {[%clk 0:00:39]}
69... Ne2+ {[%clk 0:00:43.8]} 70. Kh1 {[%clk 0:00:40.1]} 70... g2+ {[%clk
0:00:45.5]} 0-1

[Event "*** Titled Tuesday Blitz"]
[Site "Chess.com"]
[Date "2019.06.04"]
[Round "3"]
[White "bait_or_mate"]
[Black "Supernotar"]
[Result "0-1"]
[WhiteElo "2436"]
[BlackElo "2549"]
[TimeControl "180+2"]
[EndTime "13:38:15 PDT"]
[Termination "Supernotar won by resignation"]

1. d4 {[%clk 0:03:01.9]} 1... d5 {[%clk 0:02:15.5]} 2. c4 {[%clk 0:03:01.6]}
2... dxc4 {[%clk 0:02:16.4]} 3. Nf3 {[%clk 0:03:01.5]} 3... Nf6 {[%clk
0:02:17.1]} 4. e3 {[%clk 0:03:02.5]} 4... e6 {[%clk 0:02:18.2]} 5. Bxc4 {[%clk
0:03:03.8]} 5... a6 {[%clk 0:02:19.5]} 6. O-O {[%clk 0:03:03.7]} 6... b5 {[%clk
0:02:20.5]} 7. Bd3 {[%clk 0:03:04.1]} 7... Bb7 {[%clk 0:02:20.9]} 8. Re1 {[%clk
0:03:03.5]} 8... c5 {[%clk 0:02:20.8]} 9. a4 {[%clk 0:02:57.4]} 9... b4 {[%clk
0:02:21.1]} 10. Nbd2 {[%clk 0:02:56.3]} 10... Nbd7 {[%clk 0:02:21.5]} 11. Qe2
{[%clk 0:02:55.3]} 11... Be7 {[%clk 0:02:21.2]} 12. e4 {[%clk 0:02:55.2]} 12...
cxd4 {[%clk 0:02:21.8]} 13. e5 {[%clk 0:02:56.7]} 13... Nd5 {[%clk 0:02:22.5]}
14. Nb3 {[%clk 0:02:47.3]} 14... O-O {[%clk 0:02:20.5]} 15. Nbxd4 {[%clk
0:02:46.4]} 15... Nc5 {[%clk 0:02:17.6]} 16. Bc2 {[%clk 0:02:44.8]} 16... g6
{[%clk 0:02:18]} 17. Bh6 {[%clk 0:02:44.6]} 17... Re8 {[%clk 0:02:18.9]} 18.
Rad1 {[%clk 0:02:45.4]} 18... Qc7 {[%clk 0:02:15.9]} 19. Ng5 {[%clk 0:02:38.8]}
19... Nf4 {[%clk 0:01:52.2]} 20. Qg4 {[%clk 0:02:20.8]} 20... Nxg2 {[%clk
0:01:53.1]} 21. Bxg6 {[%clk 0:01:41.3]} 21... hxg6 {[%clk 0:01:43.6]} 22. Rc1
{[%clk 0:01:19.8]} 22... Qd7 {[%clk 0:01:34.4]} 23. Red1 {[%clk 0:01:11.8]}
23... Bd5 {[%clk 0:01:03.1]} 24. Ndf3 {[%clk 0:01:03.8]} 24... Qb7 {[%clk
0:00:51.4]} 25. Kxg2 {[%clk 0:00:55.8]} 25... Ne4 {[%clk 0:00:47.6]} 26. Nxe4
{[%clk 0:00:54.3]} 26... Bxe4 {[%clk 0:00:48.8]} 27. Rd4 {[%clk 0:00:47.8]}
27... Bf5 {[%clk 0:00:44.7]} 28. Qg3 {[%clk 0:00:48.8]} 28... Rad8 {[%clk
0:00:43.3]} 29. Rcd1 {[%clk 0:00:48.3]} 29... Rxd4 {[%clk 0:00:42.4]} 30. Rxd4
{[%clk 0:00:50.2]} 30... Rd8 {[%clk 0:00:39.5]} 31. Rf4 {[%clk 0:00:39.6]} 31...
Rd3 {[%clk 0:00:34.9]} 32. Bg5 {[%clk 0:00:38]} 32... Bxg5 {[%clk 0:00:29.4]}
33. Qxg5 {[%clk 0:00:39.9]} 33... Be4 {[%clk 0:00:30.3]} 34. Qf6 {[%clk
0:00:37.3]} 34... b3 {[%clk 0:00:25.8]} 35. h4 {[%clk 0:00:36.6]} 35... Kf8
{[%clk 0:00:23]} 36. Qh8+ {[%clk 0:00:21.1]} 36... Ke7 {[%clk 0:00:23.8]} 37.
Qf6+ {[%clk 0:00:23]} 37... Ke8 {[%clk 0:00:25.3]} 38. Qh8+ {[%clk 0:00:23.4]}
38... Ke7 {[%clk 0:00:26]} 39. Qf6+ {[%clk 0:00:19.6]} 39... Kf8 {[%clk
0:00:23.8]} 40. Kg3 {[%clk 0:00:16]} 40... Bxf3 {[%clk 0:00:20.5]} 41. Rxf3
{[%clk 0:00:17.9]} 41... Rxf3+ {[%clk 0:00:21.2]} 42. Qxf3 {[%clk 0:00:19.8]}
42... Qb8 {[%clk 0:00:15.1]} 43. Kf4 {[%clk 0:00:18.1]} 43... Qb4+ {[%clk
0:00:15]} 44. Kg5 {[%clk 0:00:18.5]} 44... Qd2+ {[%clk 0:00:15.3]} 45. Kg4
{[%clk 0:00:15.4]} 45... Qxb2 {[%clk 0:00:15.6]} 46. Qf6 {[%clk 0:00:16.2]}
46... Qd4+ {[%clk 0:00:15.2]} 47. f4 {[%clk 0:00:17.1]} 47... b2 {[%clk
0:00:15]} 48. Qh8+ {[%clk 0:00:17.5]} 48... Ke7 {[%clk 0:00:16.4]} 49. Qf6+
{[%clk 0:00:19.4]} 49... Ke8 {[%clk 0:00:17.8]} 50. Qh8+ {[%clk 0:00:20.5]}
50... Kd7 {[%clk 0:00:19.2]} 51. Qf8 {[%clk 0:00:22]} 51... b1=Q {[%clk
0:00:17.7]} 52. Qxf7+ {[%clk 0:00:23.4]} 52... Kc6 {[%clk 0:00:18.6]} 53. Qxe6+
{[%clk 0:00:24.5]} 53... Kc5 {[%clk 0:00:20]} 54. Qc8+ {[%clk 0:00:24.9]} 54...
Kd5 {[%clk 0:00:18.8]} 55. Qd7+ {[%clk 0:00:25.7]} 55... Ke4 {[%clk 0:00:18]}
56. Qc6+ {[%clk 0:00:26.8]} 56... Ke3 {[%clk 0:00:18.6]} 57. Qf3+ {[%clk
0:00:27.1]} 57... Kd2 {[%clk 0:00:19.1]} 58. Qg2+ {[%clk 0:00:29]} 58... Kc3
{[%clk 0:00:19.7]} 59. Qf3+ {[%clk 0:00:29.9]} 59... Qbd3 {[%clk 0:00:20.5]} 60.
Qc6+ {[%clk 0:00:29.5]} 60... Q4c4 {[%clk 0:00:20]} 61. Qa8 {[%clk 0:00:26.4]}
61... Qf5+ {[%clk 0:00:18.9]} 0-1

[Event "*** Titled Tuesday Blitz"]
[Site "Chess.com"]
[Date "2019.06.04"]
[Round "3"]
[White "lachesisQ"]
[Black "Niclox"]
[Result "1-0"]
[WhiteElo "3081"]
[BlackElo "2665"]
[TimeControl "180+2"]
[EndTime "13:38:20 PDT"]
[Termination "lachesisQ won on time"]

1. e4 {[%clk 0:03:01.9]} 1... c5 {[%clk 0:02:57.8]} 2. Nf3 {[%clk 0:03:01.4]}
2... d6 {[%clk 0:02:58.6]} 3. d4 {[%clk 0:03:01.6]} 3... cxd4 {[%clk 0:02:59.6]}
4. Nxd4 {[%clk 0:03:03.5]} 4... Nf6 {[%clk 0:03:00.8]} 5. Nc3 {[%clk 0:03:03.4]}
5... g6 {[%clk 0:03:02.1]} 6. f3 {[%clk 0:03:02.7]} 6... Bg7 {[%clk 0:03:02.2]}
7. Be3 {[%clk 0:03:04]} 7... O-O {[%clk 0:03:03.4]} 8. Qd2 {[%clk 0:03:05.2]}
8... Nc6 {[%clk 0:03:04.6]} 9. O-O-O {[%clk 0:03:06.9]} 9... Nxd4 {[%clk
0:03:05.1]} 10. Bxd4 {[%clk 0:03:05.8]} 10... Be6 {[%clk 0:03:07]} 11. g4 {[%clk
0:02:57.5]} 11... Qa5 {[%clk 0:03:05]} 12. a3 {[%clk 0:02:48.6]} 12... Rfc8
{[%clk 0:03:05.1]} 13. g5 {[%clk 0:02:46.1]} 13... Nh5 {[%clk 0:02:56.8]} 14.
Bxg7 {[%clk 0:02:44.8]} 14... Kxg7 {[%clk 0:02:55.3]} 15. Ne2 {[%clk 0:02:08.5]}
15... Qxd2+ {[%clk 0:02:48.9]} 16. Kxd2 {[%clk 0:02:03.8]} 16... Rc5 {[%clk
0:02:47.2]} 17. h4 {[%clk 0:02:00.4]} 17... Rac8 {[%clk 0:02:47.3]} 18. Nd4
{[%clk 0:01:55.7]} 18... Nf4 {[%clk 0:02:44.9]} 19. Ke3 {[%clk 0:01:51.5]} 19...
Nh5 {[%clk 0:02:33.3]} 20. Rg1 {[%clk 0:01:49.4]} 20... Rxc2 {[%clk 0:02:11.4]}
21. Nxc2 {[%clk 0:01:48.1]} 21... Rxc2 {[%clk 0:02:13.3]} 22. Rg2 {[%clk
0:01:46.2]} 22... Rc5 {[%clk 0:02:07.3]} 23. Bd3 {[%clk 0:01:23.8]} 23... Bb3
{[%clk 0:02:01.8]} 24. Rdd2 {[%clk 0:01:24.6]} 24... h6 {[%clk 0:01:56.5]} 25.
Bc2 {[%clk 0:01:21.9]} 25... Be6 {[%clk 0:01:51.9]} 26. f4 {[%clk 0:01:22.7]}
26... hxg5 {[%clk 0:01:50.9]} 27. hxg5 {[%clk 0:01:23.3]} 27... Bd7 {[%clk
0:01:46.1]} 28. Bd1 {[%clk 0:01:23.3]} 28... Bc6 {[%clk 0:01:37.7]} 29. Rc2
{[%clk 0:01:21.1]} 29... Ra5 {[%clk 0:01:27.4]} 30. Rc3 {[%clk 0:01:13]} 30...
e5 {[%clk 0:01:25]} 31. f5 {[%clk 0:01:05.3]} 31... Nf4 {[%clk 0:01:02.5]} 32.
f6+ {[%clk 0:01:05.9]} 32... Kg8 {[%clk 0:01:02]} 33. Rh2 {[%clk 0:00:57]} 33...
d5 {[%clk 0:01:01.9]} 34. b4 {[%clk 0:00:57.6]} 34... d4+ {[%clk 0:00:42.9]} 35.
Kf3 {[%clk 0:00:52.2]} 35... Ra6 {[%clk 0:00:25.7]} 36. b5 {[%clk 0:00:53.2]}
36... Rb6 {[%clk 0:00:26.9]} 37. Rc5 {[%clk 0:00:42.9]} 37... Rxb5 {[%clk
0:00:23.9]} 38. Rxb5 {[%clk 0:00:44.1]} 38... Bxb5 {[%clk 0:00:25.8]} 39. Bb3
{[%clk 0:00:45.6]} 39... Bc6 {[%clk 0:00:16.7]} 40. a4 {[%clk 0:00:43.9]} 40...
Nh5 {[%clk 0:00:16]} 41. a5 {[%clk 0:00:36.8]} 41... a6 {[%clk 0:00:16.3]} 42.
Bd5 {[%clk 0:00:36.6]} 42... Nf4 {[%clk 0:00:10.9]} 43. Bxc6 {[%clk 0:00:35.2]}
43... bxc6 {[%clk 0:00:12.8]} 44. Rc2 {[%clk 0:00:28.7]} 44... Ne6 {[%clk
0:00:13.5]} 45. Rxc6 {[%clk 0:00:29.6]} 45... Nxg5+ {[%clk 0:00:14.5]} 46. Ke2
{[%clk 0:00:29.6]} 46... Nxe4 {[%clk 0:00:15.6]} 47. Rxa6 {[%clk 0:00:30.9]}
47... d3+ {[%clk 0:00:13.3]} 48. Ke3 {[%clk 0:00:31.8]} 48... d2 {[%clk
0:00:12.8]} 49. Ra8+ {[%clk 0:00:33.1]} 49... Kh7 {[%clk 0:00:13.7]} 50. Rd8
{[%clk 0:00:35]} 50... Nxf6 {[%clk 0:00:11.8]} 51. a6 {[%clk 0:00:35.7]} 51...
Ng4+ {[%clk 0:00:09.1]} 52. Kxd2 {[%clk 0:00:36.5]} 52... Nf2 {[%clk 0:00:08.5]}
53. a7 {[%clk 0:00:37.1]} 53... Ne4+ {[%clk 0:00:09.9]} 54. Ke1 {[%clk
0:00:38.2]} 54... Nc5 {[%clk 0:00:10.3]} 55. a8=Q {[%clk 0:00:39.1]} 1-0